bitfinex/quotes_BTCUSD_20241203
["timestamp","ask_amount","ask_price","bid_price","bid_amount"]
[1733191702561,0.05218345,95684.0,95683.0,0.11161027]
[1733191702988,0.05218345,95684.0,95683.0,0.10861027]
[1733191703383,0.05218345,95684.0,95683.0,0.11761027]
[1733191704573,0.05218345,95684.0,95683.0,0.11361027]
[1733191704774,0.05218345,95684.0,95683.0,0.11195444]
[1733191705225,0.05218345,95684.0,95683.0,0.11495444]
[1733191705548,0.05218345,95684.0,95683.0,0.10595444]
[1733191705759,0.05218345,95684.0,95683.0,0.11195444]
[1733191705973,0.05218345,95684.0,95683.0,0.12095444]
[1733191706186,0.05218345,95684.0,95683.0,0.1158794]
[1733191706403,0.05218345,95684.0,95683.0,0.1218794]
[1733191707062,0.05218345,95684.0,95683.0,0.1308794]
[1733191707492,0.05218345,95684.0,95683.0,0.12995444]
[1733191707713,0.05218345,95684.0,95683.0,0.12395444]
[1733191707934,0.05218345,95684.0,95683.0,0.12995444]
[1733191708153,0.05218345,95684.0,95683.0,0.11195444]
[1733191708567,0.05218345,95684.0,95683.0,0.11495444]
[1733191708771,0.05218345,95684.0,95683.0,0.11195444]
[1733191709235,0.05218345,95684.0,95683.0,0.12095444]
[1733191709460,0.05218345,95684.0,95683.0,0.10595444]
[1733191709674,0.05218345,95684.0,95683.0,0.11587929]
[1733191709883,0.05218345,95684.0,95683.0,0.11587922]
[1733191710095,0.05218345,95684.0,95683.0,0.10687922]
[1733191710752,0.05218345,95684.0,95683.0,0.31287922]
[1733191710994,0.05218345,95684.0,95683.0,0.43555444]
[1733191711222,0.05218345,95684.0,95683.0,0.42955444]
[1733191711435,0.05218345,95684.0,95683.0,0.43855444]
[1733191711670,0.05218345,95684.0,95683.0,0.43967339]
[1733191712170,0.05218345,95684.0,95683.0,0.44067339]
[1733191712384,0.05218345,95684.0,95683.0,0.45038627]
[1733191712595,0.05218345,95684.0,95683.0,0.45938627]
[1733191713295,0.05218345,95684.0,95683.0,0.46838627]
[1733191713937,0.05218345,95684.0,95683.0,0.45938627]
[1733191714154,0.05218345,95684.0,95683.0,0.46838627]
[1733191716553,0.05218345,95684.0,95683.0,0.45038627]
[1733191716780,0.05218345,95684.0,95683.0,0.6533653]
[1733191717001,0.05317967,95684.0,95683.0,0.64436529]
[1733191717209,0.001729,95697.0,95683.0,0.64436529]
[1733191717210,0.001729,95697.0,95686.0,0.4]
[1733191717418,0.05343938,95687.0,95686.0,0.38264521]
[1733191717625,0.05343938,95687.0,95686.0,0.39757585]
[1733191717830,0.05343938,95687.0,95686.0,0.60659185]
[1733191718491,0.05343938,95687.0,95686.0,0.61559185]
[1733191718674,0.05343938,95687.0,95686.0,0.62459185]
[1733191719114,0.05343938,95687.0,95686.0,0.63359185]
[1733191719323,0.05343938,95687.0,95686.0,0.62459185]
[1733191719781,0.05343938,95687.0,95686.0,0.63359185]
[1733191719993,0.05343938,95687.0,95686.0,0.62459185]
[1733191720415,0.05343938,95687.0,95686.0,0.68069185]
[1733191720883,0.05343938,95687.0,95686.0,0.67169185]
[1733191721093,0.05343938,95687.0,95686.0,0.68069185]
[1733191721310,0.05343938,95687.0,95686.0,0.66269185]
[1733191721761,0.05343938,95687.0,95686.0,0.65369185]
[1733191722181,0.05343938,95687.0,95686.0,0.67169185]
[1733191722414,0.05343938,95687.0,95686.0,0.66269185]
[1733191722874,0.05343938,95687.0,95686.0,1.17868066]
[1733191723090,0.05343938,95687.0,95686.0,1.18768066]
[1733191723330,0.05343938,95687.0,95686.0,1.02169185]
[1733191723556,0.05343938,95687.0,95686.0,1.32853387]
[1733191723784,0.05343938,95687.0,95686.0,1.02169185]
[1733191724260,0.04400934,95687.0,95686.0,1.01269185]
[1733191724771,0.04400934,95687.0,95686.0,1.02169185]
[1733191725007,0.001729,95697.0,95694.0,0.608999]
[1733191725008,0.04400934,95695.0,95694.0,0.608999]
[1733191725238,0.001729,95697.0,95695.0,0.4]
[1733191725496,0.001729,95697.0,95695.0,0.50284521]
[1733191725729,0.0457762,95696.0,95695.0,0.51313227]
[1733191727381,0.0457762,95696.0,95695.0,0.51576889]
[1733191728292,0.0457762,95696.0,95695.0,0.52476889]
[1733191729177,0.0457762,95696.0,95695.0,0.53376889]
[1733191730325,0.0457762,95696.0,95695.0,0.84950652]
[1733191730545,0.0457762,95696.0,95695.0,0.53376889]
[1733191731898,0.0457762,95696.0,95695.0,0.57946889]
[1733191732123,0.03533776,95696.0,95695.0,0.89502194]
[1733191732353,0.03533776,95696.0,95695.0,0.57946889]
[1733191732572,0.03706716,95696.0,95695.0,0.57946889]
[1733191735131,0.03706716,95696.0,95695.0,0.57046889]
[1733191735345,0.03706716,95696.0,95695.0,0.57946889]
[1733191735790,0.03706716,95696.0,95695.0,0.56146889]
[1733191736012,0.03706716,95696.0,95695.0,0.57946889]
[1733191736487,0.03706716,95696.0,95695.0,0.57046889]
[1733191736926,0.03706716,95696.0,95695.0,0.57946889]
[1733191738268,0.02925106,95696.0,95695.0,1.08759891]
[1733191738482,0.02925106,95696.0,95695.0,0.57946889]
[1733191740523,0.02925106,95696.0,95695.0,0.53376889]
[1733191743911,0.0005294,95696.0,95695.0,0.54159701]
[1733191744336,0.0005294,95696.0,95695.0,0.57419913]
[1733191744546,0.0005294,95696.0,95695.0,0.54159701]
[1733191745200,0.0005294,95696.0,95695.0,0.53978451]
[1733191745424,0.0005294,95696.0,95695.0,0.57240202]
[1733191745862,0.00060297,95696.0,95695.0,0.64860202]
[1733191747023,0.00060297,95696.0,95695.0,0.6407739]
[1733191747249,0.00060297,95696.0,95695.0,0.64860749]
[1733191747498,0.0017292,95711.0,95710.0,0.208964]
[1733191747725,0.0017292,95711.0,95710.0,0.51273243]
[1733191747968,0.0017292,95711.0,95710.0,0.51262975]
[1733191748194,0.0017292,95711.0,95710.0,0.52046497]
[1733191748426,0.0017292,95711.0,95710.0,0.51262975]
[1733191748650,0.0017292,95711.0,95710.0,0.53746494]
[1733191750276,0.0017292,95711.0,95710.0,0.54800133]
[1733191750615,0.0017292,95711.0,95710.0,0.56053926]
[1733191750835,0.0017292,95711.0,95710.0,0.85674062]
[1733191751252,0.0017292,95711.0,95710.0,0.54016614]
[1733191751459,0.0017292,95711.0,95710.0,0.56054585]
[1733191751918,0.0017292,95711.0,95710.0,0.54016614]
[1733191752143,0.0017292,95711.0,95710.0,0.56054583]
[1733191754326,0.0017292,95711.0,95710.0,0.87723904]
[1733191754535,0.0017292,95711.0,95710.0,0.56054583]
[1733191764141,0.0017292,95711.0,95710.0,0.36054583]
[1733191764365,0.0808292,95711.0,95710.0,0.36054583]
[1733191764850,0.1294292,95711.0,95710.0,0.15158183]
[1733191765278,0.12993921,95711.0,95710.0,0.15158183]
[1733191765703,0.12993921,95711.0,95710.0,0.14358183]
[1733191765938,0.12993921,95711.0,95710.0,0.13458183]
[1733191766159,0.0017292,95711.0,95710.0,0.13458183]
[1733191766387,0.0017292,95711.0,95710.0,0.35854583]
[1733191767283,0.0017292,95711.0,95710.0,0.55854583]
[1733191767502,0.0766,95725.0,95722.0,0.208936]
[1733191767720,0.0766,95725.0,95724.0,0.10284521]
[1733191767935,0.0766,95725.0,95724.0,0.1232249]
[1733191769023,0.07677606,95725.0,95724.0,0.1312249]
[1733191769478,0.07728635,95725.0,95724.0,0.1312249]
[1733191769744,0.07959758,95725.0,95724.0,0.1312249]
[1733191769963,0.12589758,95725.0,95724.0,0.1312249]
[1733191770609,0.27589758,95725.0,95724.0,0.11868355]
[1733191770840,0.27358635,95725.0,95724.0,0.11868355]
[1733191771485,0.27358635,95725.0,95724.0,0.53542296]
[1733191771915,0.27358635,95725.0,95724.0,0.5470588]
[1733191772141,0.27358635,95725.0,95724.0,0.13032034]
[1733191772575,0.27358635,95725.0,95724.0,0.53538562]
[1733191773020,0.27358635,95725.0,95724.0,0.54702663]
[1733191773687,0.27358635,95725.0,95724.0,0.13032456]
[1733191774662,0.27307606,95725.0,95724.0,0.13032456]
[1733191777873,0.27307606,95725.0,95724.0,0.13031981]
[1733191778339,0.27307606,95725.0,95724.0,0.12248622]
[1733191778551,0.27307606,95725.0,95724.0,0.13031959]
[1733191778762,0.27307606,95725.0,95724.0,0.12248622]
[1733191780287,0.27480446,95725.0,95724.0,0.12248622]
[1733191786126,0.27480446,95725.0,95724.0,0.11648622]
[1733191786574,0.27480446,95725.0,95724.0,0.11948622]
[1733191786998,0.27480446,95725.0,95724.0,0.12148622]
[1733191787927,0.27480446,95725.0,95724.0,0.11948622]
[1733191788361,0.27480446,95725.0,95724.0,0.12148622]
[1733191792492,0.27531619,95725.0,95724.0,0.12148622]
[1733191792783,0.34715187,95725.0,95724.0,0.12148622]
[1733191793018,0.34724312,95725.0,95724.0,0.01864101]
[1733191793232,0.34724312,95725.0,95724.0,0.007]
[1733191793441,0.34715187,95725.0,95724.0,0.007]
[1733191793667,0.34715187,95725.0,95724.0,0.005]
[1733191793903,0.35896,95712.0,95711.0,0.0008642]
[1733191794115,0.35896,95712.0,95711.0,0.10370941]
[1733191794583,0.49006,95712.0,95711.0,0.11536423]
[1733191796558,0.49006,95712.0,95711.0,0.12236423]
[1733191798122,0.35896,95712.0,95711.0,0.12236423]
[1733191801660,0.15,95716.0,95711.0,0.12236423]
[1733191801889,0.358958,95713.0,95712.0,0.10284521]
[1733191802094,0.358958,95713.0,95712.0,0.11450349]
[1733191803899,0.07960446,95725.0,95712.0,0.11850349]
[1733191803900,0.208934,95724.0,95712.0,0.11850349]
[1733191804121,0.21124761,95723.0,95712.0,0.32746149]
[1733191804340,0.00231161,95723.0,95713.0,0.18104521]
[1733191804550,0.21124761,95723.0,95713.0,0.18104521]
[1733191804761,0.21124761,95723.0,95717.0,0.41620258]
[1733191804974,0.208936,95723.0,95718.0,0.10284521]
[1733191805190,0.417872,95723.0,95718.0,0.11449946]
[1733191805846,0.20894,95721.0,95718.0,0.11449946]
[1733191806266,0.001,95724.0,95718.0,0.11449946]
[1733191806481,0.001,95724.0,95720.0,0.10284521]
[1733191806925,0.00190446,95725.0,95721.0,0.0116501]
[1733191807156,0.00190446,95725.0,95722.0,0.10284521]
[1733191807586,0.00190446,95725.0,95723.0,0.01164469]
[1733191807816,0.00190446,95725.0,95724.0,0.10284521]
[1733191808076,0.00190446,95725.0,95724.0,0.11448921]
[1733191809519,0.00190446,95725.0,95724.0,0.23791245]
[1733191809722,0.00190446,95725.0,95724.0,0.23698921]
[1733191810044,0.00190446,95725.0,95724.0,0.23998921]
[1733191810510,0.00190446,95725.0,95724.0,0.24698921]
[1733191812820,0.00190446,95725.0,95724.0,0.2626395]
[1733191814485,0.00190446,95725.0,95724.0,0.1401395]
[1733191815755,0.00190446,95725.0,95724.0,0.14013179]
[1733191818176,0.00190446,95725.0,95724.0,0.13013179]
[1733191821822,0.00190446,95725.0,95724.0,0.25693179]
[1733191822035,0.00190446,95725.0,95724.0,0.57376267]
[1733191822246,0.0017296,95737.0,95735.0,0.88811]
[1733191822460,0.0017296,95737.0,95735.0,0.99095521]
[1733191822681,0.0017296,95737.0,95735.0,1.52634568]
[1733191822895,0.208821,95776.0,95751.0,0.289775]
[1733191823112,0.208821,95776.0,95751.0,0.60826279]
[1733191823323,0.208821,95776.0,95751.0,0.66945747]
[1733191823733,0.00231023,95775.0,95751.0,0.66945747]
[1733191824593,0.00231023,95775.0,95751.0,0.67845747]
[1733191825243,0.00231024,95779.0,95751.0,0.67845747]
[1733191825447,0.208822,95776.0,95751.0,0.67845747]
[1733191825654,0.00231023,95775.0,95751.0,0.67845747]
[1733191825894,0.208832,95771.0,95751.0,0.67845747]
[1733191826098,0.15,95775.0,95751.0,0.66281489]
[1733191826301,0.208822,95776.0,95751.0,0.66281489]
[1733191826302,0.00231023,95774.0,95751.0,0.66281489]
[1733191826482,0.00231023,95774.0,95751.0,0.67181489]
[1733191826713,0.00231023,95774.0,95751.0,0.66281489]
[1733191826928,0.00231023,95774.0,95751.0,0.66940119]
[1733191827220,0.00231023,95774.0,95751.0,0.67181489]
[1733191827403,0.00231023,95775.0,95751.0,0.66281489]
[1733191828325,0.00231023,95775.0,95751.0,0.67181489]
[1733191828951,0.208831,95772.0,95751.0,0.67181489]
[1733191829364,0.208831,95772.0,95751.0,0.68740119]
[1733191830714,0.208839,95768.0,95751.0,0.43780119]
[1733191830940,0.208839,95768.0,95751.0,0.42221489]
[1733191830941,0.00034328,95756.0,95751.0,0.42221489]
[1733191831174,0.208839,95768.0,95751.0,0.42221489]
[1733191831377,0.00034328,95764.0,95751.0,0.43780119]
[1733191832028,0.20919128,95764.0,95751.0,0.35690119]
[1733191832273,0.00034328,95764.0,95751.0,0.35690119]
[1733191832485,0.20919128,95764.0,95751.0,0.35690119]
[1733191833117,0.20919128,95764.0,95751.0,0.34131489]
[1733191833350,0.20919128,95764.0,95751.0,0.35690119]
[1733191833864,0.00231043,95763.0,95751.0,0.35690119]
[1733191834075,0.21116744,95760.0,95751.0,0.14802619]
[1733191834295,0.208867,95755.0,95751.0,0.14802619]
[1733191834502,0.00231068,95754.0,95751.0,0.14802619]
[1733191834945,0.00231068,95754.0,95751.0,0.13902619]
[1733191835151,0.00231068,95754.0,95751.0,0.12343989]
[1733191835370,0.00231068,95754.0,95751.0,0.54595328]
[1733191835569,0.00231068,95754.0,95751.0,0.13243989]
[1733191835800,0.00231068,95754.0,95751.0,0.12343989]
[1733191836013,0.00231068,95754.0,95751.0,0.13043989]
[1733191836453,0.00209124,95752.0,95751.0,0.11443989]
[1733191836665,0.07989124,95752.0,95751.0,0.11443989]
[1733191836875,0.07989124,95752.0,95751.0,0.12743989]
[1733191837083,0.07989124,95752.0,95751.0,0.11843989]
[1733191837288,0.07989124,95752.0,95751.0,0.11443989]
[1733191837749,0.07989124,95752.0,95751.0,0.11643989]
[1733191838172,0.07989124,95752.0,95751.0,0.12143989]
[1733191839001,0.07989124,95752.0,95751.0,0.11443989]
[1733191839208,0.07989124,95752.0,95751.0,0.11543989]
[1733191840265,0.07989124,95752.0,95751.0,0.11943989]
[1733191840918,0.26740188,95752.0,95751.0,0.11943989]
[1733191841142,0.22989124,95752.0,95751.0,0.11943989]
[1733191841396,0.22989124,95752.0,95751.0,0.10784521]
[1733191842082,0.07989124,95752.0,95751.0,0.10684521]
[1733191842312,0.15,95750.0,95737.0,0.001728]
[1733191842522,0.208901,95739.0,95738.0,0.10284521]
[1733191842787,0.21121221,95739.0,95738.0,0.10284521]
[1733191843756,0.2112122,95739.0,95738.0,0.10284521]
[1733191844008,0.208901,95739.0,95738.0,0.10684521]
[1733191844419,0.208901,95739.0,95738.0,0.11584521]
[1733191844617,0.20879656,95739.0,95738.0,0.11584521]
[1733191845039,0.20879656,95739.0,95738.0,0.12689293]
[1733191846303,0.0023112,95740.0,95738.0,0.12689293]
[1733191846619,0.208901,95739.0,95738.0,0.12689293]
[1733191846798,0.208897,95741.0,95738.0,0.12689293]
[1733191847013,0.208901,95739.0,95738.0,0.12689293]
[1733191847216,0.208901,95739.0,95738.0,0.11789293]
[1733191847641,0.208901,95739.0,95738.0,0.12689293]
[1733191847854,0.208901,95739.0,95738.0,0.11789293]
[1733191848271,0.208901,95739.0,95738.0,0.12689293]
[1733191848477,0.208901,95739.0,95738.0,0.12289293]
[1733191848698,0.208901,95739.0,95738.0,0.12689293]
[1733191849350,0.21121207,95739.0,95738.0,0.12289293]
[1733191849564,0.208901,95739.0,95738.0,0.12689293]
[1733191849987,0.21121214,95739.0,95738.0,0.12689293]
[1733191850197,0.208901,95739.0,95738.0,0.12689293]
[1733191850642,0.21121216,95739.0,95738.0,0.12689293]
[1733191852976,0.50763178,95739.0,95738.0,0.02404772]
[1733191853154,0.55511187,95739.0,95738.0,0.02404772]
[1733191853359,0.75511187,95739.0,95738.0,0.02404772]
[1733191853570,0.95511187,95739.0,95738.0,0.013]
[1733191853981,0.95511187,95739.0,95738.0,0.004]
[1733191854401,0.95511187,95739.0,95738.0,0.005]
[1733191854539,0.95511187,95739.0,95738.0,0.004]
[1733191854745,0.95611187,95739.0,95738.0,0.004]
[1733191854953,0.95611187,95739.0,95737.0,0.001728]
[1733191854954,0.35,95738.0,95737.0,0.001728]
[1733191855164,0.57773146,95738.0,95737.0,0.001728]
[1733191855368,0.57782271,95738.0,95737.0,0.001728]
[1733191856369,0.57882271,95738.0,95737.0,0.001728]
[1733191856580,0.57982271,95738.0,95737.0,0.001728]
[1733191857875,0.58190659,95738.0,95737.0,0.001728]
[1733191858119,0.684831,95725.0,95724.0,0.00017606]
[1733191858545,0.68700613,95725.0,95724.0,0.00017606]
[1733191858756,0.68691488,95725.0,95724.0,0.00017606]
[1733191859181,0.68691488,95725.0,95724.0,0.00217606]
[1733191859647,0.68791488,95725.0,95724.0,0.00017606]
[1733191859851,0.685831,95725.0,95724.0,0.00017606]
[1733191860900,0.685831,95725.0,95724.0,0.00190546]
[1733191861120,0.686831,95725.0,95724.0,0.00190546]
[1733191863186,0.637531,95725.0,95724.0,0.00190546]
[1733191868257,0.73340085,95725.0,95724.0,0.00190546]
[1733191870414,0.437531,95725.0,95724.0,0.00190546]
[1733191880041,0.432531,95725.0,95724.0,0.00190546]
[1733191880672,0.43262185,95725.0,95724.0,0.00190546]
[1733191882077,0.432531,95725.0,95724.0,0.00190546]
[1733191882713,0.432531,95725.0,95724.0,0.01301453]
[1733191882922,0.432531,95725.0,95724.0,0.00190546]
[1733191884141,0.432531,95725.0,95724.0,0.01301432]
[1733191884342,0.432531,95725.0,95724.0,0.00190546]
[1733191884548,0.432531,95725.0,95724.0,0.01301432]
[1733191884752,0.432531,95725.0,95724.0,0.00190546]
[1733191885026,0.432531,95725.0,95724.0,0.01301436]
[1733191885322,0.432531,95725.0,95724.0,0.00190546]
[1733191886113,0.432531,95725.0,95724.0,0.01301436]
[1733191887712,0.432531,95725.0,95724.0,0.00190546]
[1733191892131,0.355931,95725.0,95724.0,0.00190546]
[1733191897162,0.3567959,95725.0,95724.0,0.00190546]
[1733191902199,0.98999778,95725.0,95724.0,4.6e-07]
[1733191902401,0.99018902,95725.0,95724.0,4.6e-07]
[1733191903438,0.98918902,95725.0,95724.0,4.6e-07]
[1733191903839,0.99218902,95725.0,95724.0,4.6e-07]
[1733191904262,0.4,95712.0,95711.0,0.0008642]
[1733191904473,0.92204249,95712.0,95711.0,0.0008642]
[1733191904680,0.72443333,95712.0,95711.0,0.0008642]
[1733191905294,0.92443333,95712.0,95711.0,0.0008642]
[1733191905499,0.92743333,95712.0,95711.0,0.0008642]
[1733191905710,0.92743333,95712.0,95711.0,2e-07]
[1733191906310,0.93143333,95712.0,95711.0,2e-07]
[1733191908143,0.89143333,95712.0,95711.0,2e-07]
[1733191911641,0.88893333,95712.0,95711.0,2e-07]
[1733191914720,0.99177854,95712.0,95711.0,2e-07]
[1733191917469,0.88893333,95712.0,95711.0,2e-07]
[1733191917681,0.88645124,95712.0,95711.0,2e-07]
[1733191917879,0.9892827,95712.0,95711.0,2e-07]
[1733191918285,0.99177493,95712.0,95711.0,2e-07]
[1733191920457,0.99350493,95712.0,95711.0,2e-07]
[1733191925632,0.94770493,95712.0,95711.0,2e-07]
[1733191926177,0.84487347,95712.0,95711.0,2e-07]
[1733191926391,0.76547249,95712.0,95711.0,2e-07]
[1733191929144,0.76787823,95712.0,95711.0,2e-07]
[1733191934756,0.76547249,95712.0,95711.0,2e-07]
[1733191936003,0.76538124,95712.0,95711.0,2e-07]
[1733191936825,0.8682127,95712.0,95711.0,2e-07]
[1733191937186,0.87061988,95712.0,95711.0,2e-07]
[1733191939023,0.97346509,95712.0,95711.0,2e-07]
[1733191939225,0.97355634,95712.0,95711.0,2e-07]
[1733191942493,1.10065634,95712.0,95711.0,2e-07]
[1733191943492,1.09765634,95712.0,95711.0,2e-07]
[1733191943640,1.09665634,95712.0,95711.0,2e-07]
[1733191944046,1.09924916,95712.0,95711.0,2e-07]
[1733191944249,0.75649,95698.0,95697.0,0.0008643]
[1733191947008,0.76049,95698.0,95697.0,0.0008643]
[1733191947216,0.86932146,95698.0,95697.0,0.0018643]
[1733191954713,0.9185306,95698.0,95697.0,3e-07]
[1733191954918,0.91873419,95698.0,95697.0,3e-07]
[1733191955364,0.87193419,95698.0,95697.0,3e-07]
[1733191955573,0.76910273,95698.0,95697.0,3e-07]
[1733191956038,0.76910273,95698.0,95697.0,0.0017303]
[1733191956974,0.76669359,95698.0,95697.0,0.0017303]
[1733191961554,0.56669359,95698.0,95697.0,0.0017303]
[1733191961760,0.66952505,95698.0,95697.0,0.0017303]
[1733191961966,0.67193477,95698.0,95697.0,0.0017303]
[1733191962558,0.66593477,95698.0,95697.0,0.00173]
[1733191962969,0.67093477,95698.0,95697.0,0.00173]
[1733191963802,0.66693477,95698.0,95697.0,0.00173]
[1733191964217,0.66993477,95698.0,95697.0,0.00173]
[1733191965690,0.56469359,95698.0,95697.0,0.13043]
[1733191966111,0.55969359,95698.0,95697.0,0.13043]
[1733191966544,0.56469359,95698.0,95697.0,0.13043]
[1733191966965,0.56169359,95698.0,95697.0,0.13043]
[1733191967174,0.56469359,95698.0,95697.0,0.13043]
[1733191967387,0.56769359,95698.0,95697.0,0.13043]
[1733191967833,0.56469359,95698.0,95697.0,0.13043]
[1733191968347,0.66410342,95698.0,95697.0,0.13043]
[1733191968638,0.66651427,95698.0,95697.0,0.00173]
[1733191968866,0.56910444,95698.0,95697.0,0.00173]
[1733191970810,0.56669359,95698.0,95697.0,0.00173]
[1733191979258,0.56755869,95698.0,95697.0,0.00173]
[1733191981174,0.5673551,95698.0,95697.0,0.00173]
[1733191981586,0.56976694,95698.0,95697.0,0.00173]
[1733191981789,0.6725984,95698.0,95697.0,0.00173]
[1733191981997,0.8725984,95698.0,95697.0,0.00173]
[1733191982201,0.2,95696.0,95695.0,0.0008644]
[1733191982406,0.35231263,95696.0,95695.0,0.0008644]
[1733191982655,0.45283146,95696.0,95695.0,0.0008644]
[1733191983392,0.45283146,95696.0,95695.0,0.00093797]
[1733191983593,0.35,95696.0,95695.0,0.00093797]
[1733191984279,0.352,95696.0,95695.0,0.00093797]
[1733191985133,0.353,95696.0,95695.0,0.00093797]
[1733191986903,0.003,95696.0,95695.0,0.00093797]
[1733191987112,0.00531261,95696.0,95695.0,0.00093797]
[1733191988418,0.00531261,95696.0,95695.0,0.10378318]
[1733191988630,0.003,95696.0,95695.0,0.22968318]
[1733191988850,0.003,95696.0,95695.0,0.2412264]
[1733191989263,0.003,95696.0,95695.0,0.24907139]
[1733191991465,0.003,95696.0,95695.0,0.25157139]
[1733191992302,0.002,95696.0,95695.0,0.25157139]
[1733191992474,0.0008651,95698.0,95697.0,0.1284]
[1733191992707,0.0008651,95698.0,95697.0,0.2390902]
[1733191992889,0.0008651,95698.0,95697.0,0.25056765]
[1733191995327,0.0008651,95698.0,95697.0,0.25556765]
[1733191995748,0.0018651,95698.0,95697.0,0.26456765]
[1733191999330,0.0018651,95698.0,95697.0,0.26603298]
[1733192002362,0.0018651,95698.0,95697.0,0.26456765]
[1733192003007,0.0018651,95698.0,95697.0,0.26629705]
[1733192003790,0.0018651,95698.0,95697.0,0.26625683]
[1733192004419,0.0042786,95698.0,95697.0,0.26625683]
[1733192005676,0.0018651,95698.0,95697.0,0.26625683]
[1733192014443,0.0018651,95698.0,95697.0,0.26626702]
[1733192020213,0.208972,95707.0,95697.0,0.26626702]
[1733192020423,0.15,95710.0,95707.0,0.045]
[1733192020633,0.000865,95711.0,95710.0,0.0025]
[1733192020851,0.000865,95711.0,95710.0,0.19476017]
[1733192021089,0.000865,95711.0,95710.0,0.20611526]
[1733192021782,0.000865,95711.0,95710.0,0.20703879]
[1733192022034,0.000865,95711.0,95710.0,0.25673879]
[1733192022237,0.000865,95711.0,95710.0,0.25581526]
[1733192022641,0.001865,95711.0,95710.0,0.26481526]
[1733192023290,0.001865,95711.0,95710.0,0.27181526]
[1733192023950,0.001865,95711.0,95710.0,0.26481526]
[1733192024171,0.001865,95711.0,95710.0,0.25581526]
[1733192024403,0.000865,95711.0,95710.0,0.25581526]
[1733192024629,0.000865,95711.0,95710.0,0.26481526]
[1733192024880,0.000865,95711.0,95710.0,0.25581526]
[1733192025105,0.000865,95711.0,95710.0,0.2558323]
[1733192025325,0.000865,95711.0,95710.0,0.2718323]
[1733192027057,0.00327894,95711.0,95710.0,0.2718323]
[1733192027935,0.00327894,95711.0,95710.0,0.2628323]
[1733192028326,0.00327894,95711.0,95710.0,0.1335323]
[1733192028571,0.00327894,95711.0,95710.0,0.1405323]
[1733192032054,0.000865,95711.0,95710.0,0.1405323]
[1733192036916,0.00327909,95711.0,95710.0,0.1405323]
[1733192039750,0.000865,95711.0,95710.0,0.1898323]
[1733192040489,0.000865,95711.0,95710.0,0.1405323]
[1733192041109,0.00327913,95711.0,95710.0,0.1405323]
[1733192043347,0.000865,95711.0,95710.0,0.1405323]
[1733192044177,0.000865,95711.0,95710.0,0.2704323]
[1733192045093,0.208939,95722.0,95710.0,0.2704323]
[1733192045300,0.208939,95722.0,95721.0,0.0025]
[1733192045515,0.208939,95722.0,95721.0,0.1131764]
[1733192045920,0.208939,95722.0,95721.0,0.12006897]
[1733192046129,0.208939,95722.0,95721.0,0.12256897]
[1733192046960,0.21135327,95722.0,95721.0,0.12256897]
[1733192047194,0.21135327,95722.0,95721.0,0.1131764]
[1733192047919,0.21135327,95722.0,95721.0,0.1221764]
[1733192048039,0.21135327,95722.0,95721.0,0.1261764]
[1733192050738,0.21221797,95722.0,95721.0,0.1261764]
[1733192052571,0.2098037,95722.0,95721.0,0.13551562]
[1733192056106,0.2098037,95722.0,95721.0,0.13552182]
[1733192061938,0.0008647,95722.0,95721.0,0.13552182]
[1733192062880,0.00327949,95722.0,95721.0,0.13552182]
[1733192063103,0.00327949,95722.0,95721.0,0.13302182]
[1733192063457,0.00327949,95722.0,95721.0,0.1236826]
[1733192063458,0.17378406,95722.0,95721.0,0.1236826]
[1733192063658,0.28079107,95722.0,95721.0,0.1236826]
[1733192063859,0.27847949,95722.0,95721.0,0.1236826]
[1733192064534,0.27847949,95722.0,95721.0,0.1146826]
[1733192065327,0.27847949,95722.0,95721.0,0.1106826]
[1733192065521,0.36909293,95722.0,95721.0,0.1106826]
[1733192065752,0.36909293,95722.0,95721.0,0.00783739]
[1733192065986,0.27847949,95722.0,95721.0,0.00783739]
[1733192066606,0.27843214,95722.0,95721.0,0.00783739]
[1733192066930,0.27943214,95722.0,95721.0,0.00694639]
[1733192067585,0.28043214,95722.0,95721.0,0.00694639]
[1733192067789,0.28043214,95722.0,95706.0,0.0025]
[1733192067790,0.15,95721.0,95706.0,0.0025]
[1733192067997,0.208971,95707.0,95706.0,0.0025]
[1733192069506,0.208971,95707.0,95706.0,0.0055]
[1733192069930,0.208971,95707.0,95706.0,0.10834521]
[1733192070141,0.208967,95709.0,95706.0,0.10534521]
[1733192070348,0.208968,95708.0,95707.0,0.10284521]
[1733192071460,0.208968,95708.0,95707.0,0.10984521]
[1733192072287,0.208968,95708.0,95707.0,0.11284521]
[1733192072722,0.208968,95708.0,95707.0,0.11534521]
[1733192073131,0.208968,95708.0,95707.0,0.11707421]
[1733192076564,0.208967,95709.0,95707.0,0.11707421]
[1733192076769,0.208967,95709.0,95707.0,0.12606386]
[1733192077198,0.208968,95708.0,95707.0,0.12606386]
[1733192077951,0.208968,95708.0,95707.0,0.12206386]
[1733192078266,0.208968,95708.0,95707.0,0.11507421]
[1733192078465,0.208968,95708.0,95707.0,0.12207421]
[1733192078669,0.208968,95708.0,95707.0,0.12007421]
[1733192079107,0.208968,95708.0,95707.0,0.12307421]
[1733192079567,0.208964,95710.0,95707.0,0.12307421]
[1733192079771,0.15,95711.0,95709.0,0.10284521]
[1733192080004,0.358964,95710.0,95709.0,0.10284521]
[1733192080209,0.15,95710.0,95709.0,0.10284521]
[1733192081028,0.15,95711.0,95709.0,0.10484521]
[1733192081231,0.15,95713.0,95709.0,0.11084521]
[1733192081458,0.15,95711.0,95709.0,0.10884521]
[1733192081832,0.15,95711.0,95709.0,0.11084521]
[1733192082044,0.15,95711.0,95709.0,0.10484521]
[1733192082209,0.15,95711.0,95709.0,0.10284521]
[1733192082663,0.20896,95712.0,95711.0,0.0025]
[1733192082807,0.35896,95712.0,95711.0,0.10534521]
[1733192083055,0.20896,95712.0,95711.0,0.10534521]
[1733192083257,0.208948,95718.0,95712.0,0.0025]
[1733192083430,0.208951,95716.0,95715.0,0.10284521]
[1733192083635,0.15,95716.0,95715.0,0.10284521]
[1733192084806,0.15,95717.0,95715.0,0.10284521]
[1733192085017,0.15,95717.0,95715.0,0.10584521]
[1733192085218,0.15,95717.0,95715.0,0.10684521]
[1733192085422,0.208943,95720.0,95715.0,0.10684521]
[1733192085423,0.15,95719.0,95715.0,0.10684521]
[1733192085626,0.15,95720.0,95715.0,0.10684521]
[1733192085833,0.15081735,95722.0,95715.0,0.10684521]
[1733192086254,0.00081735,95722.0,95721.0,0.10534521]
[1733192087937,0.00081735,95722.0,95721.0,0.11934521]
[1733192103444,0.00081735,95722.0,95721.0,0.32828521]
[1733192104285,0.00081735,95722.0,95721.0,0.11934521]
[1733192104510,0.00081735,95722.0,95721.0,0.12026809]
[1733192105630,0.00081735,95722.0,95721.0,0.47950809]
[1733192105842,0.0017282,95752.0,95724.0,0.0726]